[Event "26th Hit Open-A 2022"]
[Site "Nova Gorica"]
[Date "2022.09.21"]
[Round "8.10"]
[White "Lavrencic, Matic"]
[Black "Davies, Nigel R"]
[Result "1-0"]
[ECO "C11"]
[WhiteElo "2274"]
[BlackElo "2420"]
[Annotator "TA"]
[PlyCount "153"]
[EventDate "2022.09.16"]
[EventType "swiss"]
[EventCountry "SLO"]
[SourceTitle "playchess.com"]
[Source "ChessBase"]
[SourceQuality "1"]
[TimeControl "5400+30"]

{[%evp 14,153,22,22,13,0,0,0,0,0,0,2,34,25,30,11,28,26,28,18,33,37,37,44,43,51,115,105,109,117,117,110,116,116,112,116,116,108,107,93,149,115,245,222,317,304,312,302,630,629,617,607,665,659,732,733,705,694,685,591,574,549,815,800,1035,1207,1155,1277,1141,928,12844,12843,12848,12849,12850,12851,2252,12845,29936,12848,29939,29941,29940,29944,29947,29946,29944,29942,29947,0,12744,10174,29947,29947,29950,29947,29945,29939,29943,0,0,0,0,0,3,3,8,3,6000,5716,29953,29956,29956,29959,29960,29957,29961,29961,29960,29962,29962,29963,29966,29967,29967,29969,29968,29969,29970,29970,29971,29972,29972,29973,29973,29969,29979,29980,29979,29981,29980,29980]} 1. e4 {[%emt 0:00:05]} e6 {[%emt 0:02:03]} 2. d4 {[%emt 0:00:26]} d5 {[%emt 0:00:04]} 3. Nc3 {[%emt 0:00:57]} Nf6 {[%emt 0:00:11]} 4. e5 {[%emt 0:00:15]} Nfd7 {[%emt 0:00:04]} 5. f4 {[%emt 0:00:11]} c5 {[%emt 0:00:07]} 6. Nf3 {[%emt 0:00:14]} a6 {[%emt 0:01:52]} 7. Be3 {[%emt 0:00:45]} Qb6 {[%emt 0:00:06]} 8. a3 {[%emt 0:03:09]} Nc6 {[%emt 0:02:08] C11: French: Classical System: 4 e5 and 4 Bg5 dxe4.} 9. Be2 {[%emt 0:07:02]} cxd4 {[%emt 0:05:18]} (9... Qxb2 $2 10. Na4 Qxa1 11. Qxa1 $18) 10. Nxd4 {[%emt 0:00:52]} Bc5 {[%emt 0:02:17][%cal Rc6d4] The position is equal.} (10... Qxb2 $2 11. Na4 Qxa3 12. Rxa3 Bxa3 13. c4 $18) 11. Na4 {[%emt 0:02:19]} (11. Nxc6 $2 Bxe3 12. Nb4 Bg1 $17) 11... Qa5+ {[%emt 0:00:17]} 12. c3 {[%emt 0:06:14] [#] Strongly threatening Nxc6.} Ba7 {[%emt 0:07:53]} (12... Bxd4 $5 13. Bxd4 Nxd4 14. Qxd4 b6 $11) 13. b4 {[%emt 0:05:16]} Qc7 {[%emt 0:00:16]} 14. Qd2 {[%emt 0:02:32] [#]} b5 $146 {[%emt 0:17:10]} ({Predecessor:} 14... O-O 15. O-O Re8 16. Kh1 b5 17. Nb2 f6 18. Nd3 Ncxe5 19. fxe5 fxe5 20. Nb3 Bb8 {1-0 (63) Shapoval,G (2183)-Romanova,I (2260) Kharkov 2012}) 15. Nb2 {[%emt 0:01:16]} Nb6 {[%emt 0:03:22]} 16. a4 $36 {[%emt 0:11:58][%mdl 2048] White is pushing.} Nxd4 {[%emt 0:00:53]} 17. Bxd4 {[%emt 0:02:05]} Bd7 {[%emt 0:13:26][%cal Rb6a4]} 18. a5 {[%emt 0:24:13]} Nc4 {[%emt 0:00:19]} 19. Nxc4 {[%emt 0:00:59]} dxc4 {[%emt 0:00:07]} ({Black should play} 19... bxc4 $14 20. f5 O-O) 20. Bxa7 $16 {[%emt 0:09:29]} Rxa7 {[%emt 0:01:47]} 21. Bf3 {[%emt 0:05:56]} Bc6 {[%emt 0:00:15]} 22. Bxc6+ {[%emt 0:03:17]} Qxc6 {[%emt 0:00:09]} 23. O-O-O {[%emt 0:00:12][%csl Gd1][%cal Rd2d8] [#]} O-O {[%emt 0:02:12]} 24. Qe2 {[%emt 0:00:34]} Rd7 {[%emt 0:04:20]} 25. Rxd7 {[%emt 0:00:12]} Qxd7 {[%emt 0:00:06][%mdl 4096] Endgame KQR-KQR} 26. Rd1 {[%emt 0:00:08]} Qc8 {[%emt 0:00:25]} (26... Qa7 $142) 27. Rd6 {[%emt 0:02:10] aiming for Qf3. White is more active.} h6 {[%emt 0:06:09]} (27... Qa8 $16 {was worth a try.}) 28. Qe4 {[%emt 0:01:49]} g6 {[%emt 0:01:31]} (28... h5 $142 29. Kd2 Qb8 30. Rxa6 Rd8+ 31. Kc2 Rd5) 29. h4 $18 {[%emt 0:01:21][%cal Bh2h4,Bh4h5][%mdl 32]} Kg7 {[%emt 0:00:08]} 30. g3 {[%emt 0:00:56]} Qa8 $2 {[%emt 0:04:33]} (30... Kg8 31. g4 Qa8 32. Qxa8 Rxa8) 31. Qxa8 {[%emt 0:00:23]} Rxa8 {[%emt 0:00:06] KR-KR} 32. Kd2 {[%emt 0:00:31]} g5 {[%emt 0:00:11]} 33. h5 {[%emt 0:00:35]} gxf4 {[%emt 0:00:08]} 34. gxf4 {[%emt 0:00:05]} Kf8 {[%emt 0:00:37]} 35. f5 {[%emt 0:03:02]} exf5 {[%emt 0:00:14]} 36. Rxh6 {[%emt 0:02:52] White threatens Rh8+ and mate.} Kg7 {[%emt 0:03:47] Prevents Rh8.} 37. Rf6 {[%emt 0:00:30]} Re8 {[%emt 0:00:52]} 38. h6+ {[%emt 0:00:42]} Kh7 {[%emt 0:00:15]} 39. Rxf7+ {[%emt 0:00:22]} Kxh6 {[%emt 0:00:12]} 40. Rxf5 {[%emt 0:00:07]} Rd8+ {[%emt 0:00:38]} 41. Kc2 {[%emt 0:00:45] Hoping for Rf6+.} Rd5 {[%emt 0:00:48]} 42. Rf6+ {[%emt 0:00:17]} Kg5 {[%emt 0:00:08]} 43. Rxa6 {[%emt 0:00:08] White wants to mate with Rd6.} Kf4 {[%emt 0:00:40]} 44. Rd6 {[%emt 0:03:13]} Rxe5 {[%emt 0:00:15]} 45. a6 {[%emt 0:01:30][%cal Ba5a6,Ba6a7][%mdl 32] Rf6+ would kill now.} Re2+ {[%emt 0:00:25]} 46. Rd2 {[%emt 0:00:17]} (46. Kb1 $142 Re1+ 47. Kb2 Re2+ 48. Ka3 Rg2 49. Rb6 Rg1 50. Rxb5 Ra1+ 51. Kb2 Rxa6 52. Rc5) 46... Re6 {[%emt 0:00:07]} 47. a7 {[%emt 0:00:15]} Ra6 {[%emt 0:00:05]} 48. Rd7 {[%emt 0:00:08]} Ke4 {[%emt 0:00:28]} 49. Kb2 {[%emt 0:00:48]} Ke5 {[%emt 0:01:27]} 50. Rb7 {[%emt 0:00:25]} Ke4 {[%emt 0:00:09]} 51. Rd7 {[%emt 0:01:13]} (51. Rxb5 $142 Rxa7 52. Rc5 Kd3 53. Rd5+ Ke3 54. Rd4 Rc7 55. Kc2 Kf3 56. Kd2) 51... Ke5 {[%emt 0:00:33]} 52. Rh7 {[%emt 0:00:25] Threatening mate with Rh5+.} Ke4 {[%emt 0:00:20]} 53. Rb7 {[%emt 0:00:10]} Kd3 {[%emt 0:00:31]} 54. Rxb5 {[%emt 0:00:10]} ({Weaker is} 54. Re7 Ra4 55. Rg7 Ke4 $16) 54... Rxa7 {[%emt 0:00:04]} 55. Rd5+ {[%emt 0:00:08]} Ke3 {[%emt 0:00:08]} 56. b5 $2 {[%emt 0:00:57]} (56. Rd4 {mates} Rc7 57. Kb1 Rc6 58. Kc2 Rc8 59. Rd7 Rc6 60. Re7+ Kf4 61. Kc1) 56... Ra5 $1 $11 {[%emt 0:00:22]} 57. Kc2 {[%emt 0:01:22]} Ra2+ {[%emt 0:00:22]} 58. Kb1 {[%emt 0:00:10]} Ra5 {[%emt 0:00:36]} 59. Kb2 {[%emt 0:00:16]} Ke4 {[%emt 0:00:35]} 60. Rh5 {[%emt 0:00:32]} Kd3 $2 {[%emt 0:00:19][%mdl 8192] Black is on the road to losing.} (60... Ke3 $11) 61. Rc5 $18 {[%emt 0:00:28]} Ke3 {[%emt 0:00:22]} 62. Rxc4 {[%emt 0:00:37] White mates.} Rxb5+ {[%emt 0:00:10]} 63. Kc2 {[%emt 0:00:08]} Rb8 {[%emt 0:00:54]} 64. Rd4 {[%emt 0:00:20]} Rb7 {[%emt 0:00:10]} 65. Rd5 {[%emt 0:00:20]} Ke4 {[%emt 0:00:39]} 66. c4 {[%emt 0:00:19][%cal Bc3c4,Bc4c5,Bc5c6,Bc6c7][%mdl 32]} Rb8 {[%emt 0:01:48]} 67. Kc3 {[%emt 0:00:18]} Rb1 {[%emt 0:02:07]} 68. Rd6 {[%emt 0:00:21]} Ke5 {[%emt 0:00:14]} 69. c5 {[%emt 0:00:24]} Rb8 {[%emt 0:01:01]} 70. Kc4 {[%emt 0:00:25]} Rb1 {[%emt 0:00:10]} 71. Rd7 {[%emt 0:00:33]} Ke6 {[%emt 0:00:07]} 72. c6 {[%emt 0:00:22]} Rb2 {[%emt 0:00:13]} 73. Kc5 {[%emt 0:00:26]} Rb1 {[%emt 0:00:08]} 74. Rd8 {[%emt 0:01:03]} Ke7 {[%emt 0:01:46]} 75. c7 {[%emt 0:00:23]} Rc1+ {[%emt 0:00:04]} 76. Kb6 {[%emt 0:00:05]} Rb1+ {[%emt 0:00:04]} 77. Ka5 {[%emt 0:00:21] Weighted Error Value: White=0.25 (precise) /Black=0.37} 1-0

[Event "26th Hit Open-A 2022"]
[Site "Nova Gorica"]
[Date "2022.09.21"]
[Round "8.11"]
[White "Royal, Shreyas"]
[Black "Ronka, Erik"]
[Result "1-0"]
[ECO "E04"]
[WhiteElo "2412"]
[BlackElo "2248"]
[Annotator "TA"]
[PlyCount "37"]
[EventDate "2022.09.16"]
[EventType "swiss"]
[EventCountry "SLO"]
[SourceTitle "playchess.com"]
[Source "ChessBase"]
[SourceQuality "1"]
[TimeControl "5400+30"]

{[%evp 10,37,24,19,18,18,15,10,11,15,18,0,0,0,0,0,0,0,0,-5,-14,-17,-8,-56,546,548,29989,29990,29995,29996]} 1. d4 {[%emt 0:00:03]} d5 {[%emt 0:01:09]} 2. c4 {[%emt 0:00:06]} e6 {[%emt 0:00:17]} 3. Nf3 {[%emt 0:00:06]} Nf6 {[%emt 0:00:11]} 4. g3 {[%emt 0:00:06]} dxc4 {[%emt 0:01:11]} 5. Bg2 {[%emt 0:00:06]} a6 {[%emt 0:01:01]} 6. Ne5 {[%emt 0:00:12][%mdl 1024] White has compensation.} Bb4+ {[%emt 0:00:24] E04: Open Catalan: 5 Nf3.} 7. Nc3 {[%emt 0:00:11][%cal Bb1c3,Bc3e4,Be4g5][%mdl 32] [#] And now Qa4+ would win.} ({Don't play} 7. Bd2 Qxd4 8. Bxb4 Qxe5 $11) 7... Nd5 {[%emt 0:01:16]} 8. O-O {[%emt 0:00:12] Hoping for Nxd5.} O-O {[%emt 0:01:11] The position is equal.} 9. Ne4 $1 {[%emt 0:00:07][%mdl 4] is recently more successful than 9.Qc2.} c3 {[%emt 0:01:27]} 10. bxc3 {[%emt 0:06:19]} Nxc3 {[%emt 0:04:42]} 11. Qc2 {[%emt 0:03:26] [#]} Qxd4 $146 {[%emt 0:04:49]} ({Predecessor:} 11... Nxe4 12. Bxe4 f5 13. Bg2 Qxd4 14. Rb1 Qc3 15. Qa4 Qxe5 16. Qxb4 Qb5 17. Qc3 Qxb1 {1-0 (56) Cheparinov,I (2688)-Santos Latasa,J (2600) Barbera del Valles 2020}) 12. Ng5 {[%emt 0:04:53][%csl Gg5][%cal Rc2h7] [#]} f5 $1 {[%emt 0:17:21]} 13. Nd3 {[%emt 0:10:22] Black must now prevent e3.} Ba5 {[%emt 0:20:59]} 14. Ba3 {[%emt 0:00:07]} Re8 {[%emt 0:02:47]} 15. Rfc1 {[%emt 0:18:19]} Qa4 {[%emt 0:11:05]} 16. Qb2 {[%emt 0:00:53]} (16. Qxa4 $11 {deserves consideration.} Nxa4 17. Rc4) 16... Nxe2+ $2 {[%emt 0:04:24][%mdl 8192]} 17. Qxe2 $18 {[%emt 0:00:06] Intending Qh5 and mate.} Qxa3 {[%emt 0:00:04]} 18. Qh5 $1 {[%emt 0:00:08][%csl LRe8,LRh7]} Bd7 {[%emt 0:10:13]} 19. Ne5 {[%emt 0:02:12] Weighted Error Value: White=0.08 (flawless) /Black=0.67} 1-0

[Event "26th Hit Open-A 2022"]
[Site "Nova Gorica"]
[Date "2022.09.21"]
[Round "8.12"]
[White "Chkhaidze, Nikoloz"]
[Black "Thybo, Jesper Sondergaard"]
[Result "1/2-1/2"]
[ECO "A88"]
[WhiteElo "2239"]
[BlackElo "2516"]
[Annotator "TA"]
[PlyCount "147"]
[EventDate "2022.09.16"]
[EventType "swiss"]
[EventCountry "SLO"]
[SourceTitle "playchess.com"]
[Source "ChessBase"]
[SourceQuality "1"]
[TimeControl "5400+30"]

{[%evp 23,147,19,14,8,28,12,27,0,22,28,25,0,9,10,14,10,8,0,0,0,0,0,-7,0,0,0,0,-14,-19,-17,-23,-18,-9,-136,-145,-140,0,0,0,0,0,0,0,-5,-6,-5,-6,-5,-5,-4,-5,-3,-6,-8,-3,-77,-71,-120,-106,-98,-33,-33,-33,-33,0,0,0,0,0,0,0,0,0,0,0,-140,-110,-109,-8,-8,-8,-8,0,-8,-8,-8,-8,-8,-8,-8,-8,-8,-8,-8,-8,-8,-8,-8,-8,-8,0,0,0,0,0,0,0,-8,-8,-8,-8,-8,-8,-8,-8,-8,-8,-8,-8,-8,-8,-8,-8,-8,0,0]} 1. d4 {[%emt 0:00:02]} f5 {[%emt 0:00:14]} 2. c4 {[%emt 0:00:09]} Nf6 {[%emt 0:00:45]} 3. g3 {[%emt 0:00:14]} g6 {[%emt 0:00:16]} 4. Bg2 {[%emt 0:00:02]} Bg7 {[%emt 0:00:09]} 5. Nf3 {[%emt 0:00:01]} O-O {[%emt 0:00:35]} 6. O-O {[%emt 0:00:02]} d6 {[%emt 0:00:15]} 7. Nc3 {[%emt 0:00:03]} c6 {[%emt 0:00:17]} 8. d5 {[%emt 0:01:17]} e5 {[%emt 0:00:39]} 9. dxe6 {[%emt 0:00:02]} Bxe6 {[%emt 0:00:10]} 10. b3 {[%emt 0:00:36]} Na6 {[%emt 0:02:34]} 11. Bb2 {[%emt 0:00:48]} Qe7 {[%emt 0:01:06]} 12. Ng5 {[%emt 0:00:54]} Bd7 {[%emt 0:04:15]} 13. Qc2 {[%emt 0:10:52] A88: Dutch Defence: Leningrad System: 5 Nf3 0-0 6 0-0 d6 7 Nc3 c6.} Rad8 {[%emt 0:04:10]} (13... Ng4 {is more complex.} 14. Qd2 Rad8 15. Rad1 Bc8) 14. Rad1 {[%emt 0:00:19]} Rfe8 {[%emt 0:08:20]} (14... Ng4 {keeps more tension.} 15. Qd2 Bc8 16. h3 Nf6) 15. Rfe1 {[%emt 0:02:47] White has an edge.} (15. e3 {looks sharper.} Ng4 16. Nf3 Nc5 17. h3) 15... h6 {[%emt 0:11:53]} 16. Nf3 {[%emt 0:10:13] [#]} Nc5 $146 {[%emt 0:00:50]} ({Predecessor:} 16... d5 17. cxd5 Nb4 18. Qc1 Nfxd5 19. Nxd5 Nxd5 20. Nh4 Bxb2 21. Qxb2 Nf4 22. gxf4 Qxh4 {½-½ (41) Makarjev,I (2335)-Yagupov,I (2410) Orel 1992}) 17. b4 {[%emt 0:06:26]} Nce4 {[%emt 0:01:11][%cal Oe4f2]} 18. e3 {[%emt 0:00:18]} Be6 {[%emt 0:02:26]} 19. Nxe4 {[%emt 0:01:55]} fxe4 {[%emt 0:02:26]} 20. Nd2 {[%emt 0:17:57]} d5 {[%emt 0:03:55]} 21. cxd5 {[%emt 0:04:12]} cxd5 {[%emt 0:00:12]} 22. a3 {[%emt 0:01:02]} Rc8 {[%emt 0:02:55]} 23. Qb1 {[%emt 0:00:21]} Ng4 {[%emt 0:07:27]} 24. Bxg7 {[%emt 0:12:25]} Qxg7 {[%emt 0:01:16]} 25. f3 {[%emt 0:09:11]} exf3 {[%emt 0:00:56]} 26. Nxf3 {[%emt 0:00:01]} Bf5 {[%emt 0:04:34] Inhibits e4.} 27. Qb3 {[%emt 0:02:26]} Be4 {[%emt 0:03:26]} 28. Rc1 {[%emt 0:00:15] Inhibits Rc3.} (28. Rd4 $11 Kh7 29. Bh3 Bxf3 30. Bxg4 Bxg4 31. Rxg4) 28... Qf6 $17 {[%emt 0:02:15]} 29. h3 {[%emt 0:07:02] [#]} Rxc1 {[%emt 0:09:52]} ({Weaker is} 29... Bxf3 30. hxg4 Bxg2 31. Rxc8 Rxc8 32. Kxg2 $11) (29... Qd6 $1 $17 {...Bxf3 is the strong threat.} 30. hxg4 Qxg3) 30. Rxc1 $11 {[%emt 0:00:06]} Ne5 {[%emt 0:00:39]} 31. Nd2 {[%emt 0:04:36]} Bxg2 {[%emt 0:04:17]} 32. Kxg2 {[%emt 0:00:01]} Qf7 {[%emt 0:04:26]} 33. Rc5 $132 {[%emt 0:04:24][%mdl 2048] White has counterplay} Rd8 {[%emt 0:01:53]} 34. e4 {[%emt 0:00:35]} dxe4 {[%emt 0:00:11]} 35. Qxf7+ {[%emt 0:00:16]} Kxf7 {[%emt 0:00:26]} 36. Nxe4 {[%emt 0:00:03][%mdl 4096] Endgame KRN-KRN} Ke6 {[%emt 0:00:11]} 37. Rc7 {[%emt 0:00:38]} Kf5 {[%emt 0:00:32]} 38. Nf2 {[%emt 0:03:36]} Rd7 {[%emt 0:00:40]} 39. Rxd7 {[%emt 0:01:31]} (39. Rc8 $11) 39... Nxd7 {[%emt 0:00:01] KN-KN} 40. Kf3 {[%emt 0:00:17]} ({White should try} 40. Nd3) 40... Ne5+ $17 {[%emt 0:00:21]} 41. Ke2 {[%emt 0:00:13] [#]} b5 {[%emt 0:08:17]} ({Black should play} 41... Ke6 $1 $17) 42. Nd1 $15 {[%emt 0:01:14]} Nc4 {[%emt 0:00:06]} 43. Kd3 {[%emt 0:00:56]} Nxa3 {[%emt 0:02:00]} 44. Ne3+ {[%emt 0:00:03]} Ke6 {[%emt 0:02:17]} 45. Kc3 {[%emt 0:00:03]} Ke5 {[%emt 0:00:26] And now ...Ke4 would win.} 46. Ng4+ {[%emt 0:00:09]} Ke4 {[%emt 0:00:16] Hoping for ...Kf3.} 47. Nxh6 {[%emt 0:00:02]} Kf3 {[%emt 0:00:39]} 48. g4 {[%emt 0:02:02]} Kg3 {[%emt 0:00:17]} 49. Kd4 {[%emt 0:00:41]} (49. g5 $11) 49... Kxh3 $17 {[%emt 0:00:23]} 50. g5 {[%emt 0:01:03]} Kh4 {[%emt 0:01:44]} (50... Nc2+ $17 51. Kc3 Ne1) 51. Nf7 $11 {[%emt 0:00:01] The position is equal.} Nc2+ {[%emt 0:01:05]} 52. Kc3 {[%emt 0:01:04]} Na3 {[%emt 0:00:37] aiming for ...a6.} 53. Kd4 {[%emt 0:00:10]} a6 {[%emt 0:02:01][%cal Ba7a6,Ba6a5,Ba5a4,Ba4a3,Ba3a2][%mdl 32] Threatens to win with ...Nc2+.} 54. Ke5 $1 {[%emt 0:00:09]} Nc2 {[%emt 0:02:52]} 55. Kf6 {[%emt 0:00:03]} Kh5 {[%emt 0:00:05]} (55... Nxb4 56. Kxg6 Nd5 57. Kf5 $11) 56. Ne5 {[%emt 0:00:13]} Nxb4 {[%emt 0:00:21]} 57. Nxg6 {[%emt 0:00:07] Black must now prevent Nf4+.} Nd5+ {[%emt 0:00:06]} 58. Kf5 {[%emt 0:00:48]} a5 {[%emt 0:01:05]} 59. Ne5 {[%emt 0:01:13]} a4 {[%emt 0:00:12]} 60. Nd3 {[%emt 0:00:45]} ({Avoid the trap} 60. g6 $2 a3 61. Nc6 a2 $19) 60... b4 {[%emt 0:01:33]} ({But not} 60... a3 61. Nc1 $15) 61. Nc5 $1 {[%emt 0:01:01]} a3 {[%emt 0:00:46]} 62. Nb3 {[%emt 0:00:50]} a2 {[%emt 0:00:47]} 63. g6 {[%emt 0:00:23]} Kh6 {[%emt 0:00:20]} 64. Ke5 {[%emt 0:00:27]} Ne3 {[%emt 0:00:47]} 65. Kd4 {[%emt 0:00:50]} Nc2+ {[%emt 0:00:30]} 66. Kd3 {[%emt 0:00:28]} Na3 {[%emt 0:00:07]} 67. Kd2 {[%emt 0:00:30]} Kxg6 {[%emt 0:00:30]} 68. Kc1 {[%emt 0:00:03]} Nc4 {[%emt 0:00:36]} 69. Na1 {[%emt 0:00:11]} Kf5 {[%emt 0:00:33]} 70. Kc2 {[%emt 0:00:14]} Na5 {[%emt 0:00:30]} (70... Ke4 $5) 71. Kb2 {[%emt 0:00:07]} Ke4 {[%emt 0:00:11]} 72. Kxa2 {[%emt 0:00:15]} Kd3 {[%emt 0:00:19] ( -> ...Kc3)} 73. Kb2 {[%emt 0:01:05]} b3 {[%emt 0:01:07]} 74. Nxb3 {[%emt 0:00:04] Weighted Error Value: White=0.15 (very precise) /Black=0.12 (very precise)} 1/2-1/2

[Event "26th Hit Open-A 2022"]
[Site "Nova Gorica"]
[Date "2022.09.21"]
[Round "8.13"]
[White "Garsky, Vladyslav"]
[Black "Beliavsky, Alexander G"]
[Result "0-1"]
[ECO "B10"]
[WhiteElo "2229"]
[BlackElo "2505"]
[Annotator "TA"]
[PlyCount "66"]
[EventDate "2022.09.16"]
[EventType "swiss"]
[EventCountry "SLO"]
[SourceTitle "playchess.com"]
[Source "ChessBase"]
[SourceQuality "1"]
[TimeControl "5400+30"]

{[%evp 15,66,0,6,-49,-18,-58,-47,-60,-59,-68,-52,-41,-38,-38,-37,-37,-29,-64,-67,-47,-55,-85,-91,-89,-92,-96,-99,-162,-170,-220,-214,-245,-245,-245,-240,-394,-389,-404,-410,-398,-411,-660,-645,-652,-647,-856,-845,-893,-888,-872,-815,-805,-787]} 1. e4 {[%emt 0:00:05]} c6 {[%emt 0:02:26]} 2. Nf3 {[%emt 0:01:04]} d5 {[%emt 0:00:58]} 3. d3 {[%emt 0:00:35]} g6 {[%emt 0:01:58]} 4. Nbd2 {[%emt 0:01:33]} Bg7 {[%emt 0:00:13]} 5. g3 {[%emt 0:00:06]} e5 {[%emt 0:01:50]} 6. Bg2 {[%emt 0:00:43]} Ne7 {[%emt 0:00:18]} 7. O-O {[%emt 0:00:28]} O-O {[%emt 0:00:07]} 8. Re1 {[%emt 0:00:47]} d4 {[%emt 0:09:26]} 9. Nb3 {[%emt 0:06:03] [#] B10: Caro-Kann: 2 d3 and 2 c4.} (9. Nc4 $11) 9... Na6 $146 {[%emt 0:04:51]} ({Predecessor:} 9... a5 10. a4 Na6 11. c3 c5 12. Qc2 Nc6 13. Nbd2 Be6 14. Nc4 h6 15. Qe2 Qc7 16. Nh4 Qd8 {1-0 (41) Jurkovic,A (2274)-Tica,S (2396) Zagreb 2019}) 10. c3 {[%emt 0:04:41]} c5 $1 {[%emt 0:00:06]} 11. cxd4 {[%emt 0:02:28] Black is slightly better.} cxd4 {[%emt 0:00:28]} 12. Bd2 {[%emt 0:05:56]} Bd7 {[%emt 0:03:34]} 13. Na5 {[%emt 0:02:42]} Nc6 {[%emt 0:09:34]} 14. Nxc6 $1 {[%emt 0:03:43]} ({Don't go for} 14. Nxb7 $2 Qc7 15. b4 (15. Qb3 $2 Rab8 $19) 15... Qxb7 $19) 14... bxc6 {[%emt 0:00:22]} 15. Qa4 {[%emt 0:07:41]} Qb6 {[%emt 0:03:19]} 16. Ba5 {[%emt 0:01:29]} Qb5 {[%emt 0:00:18]} 17. Qxb5 {[%emt 0:02:25]} cxb5 {[%emt 0:00:06]} 18. Rac1 {[%emt 0:00:54] Black keeps a firm grip on the game.} Rfc8 {[%emt 0:02:50]} 19. Bf1 {[%emt 0:17:28]} f6 {[%emt 0:03:32]} 20. Be2 {[%emt 0:05:38]} Be6 {[%emt 0:01:12]} 21. Nd2 {[%emt 0:02:53]} (21. Bd2 $17) 21... Bh6 $19 {[%emt 0:01:41]} ({Inferior is} 21... Bxa2 22. Bg4 Rc5 23. b3 $11) 22. b3 {[%emt 0:01:08]} (22. Red1 $142) 22... Nc5 {[%emt 0:02:05]} 23. f4 {[%emt 0:03:34]} exf4 {[%emt 0:01:36]} 24. Nf3 {[%emt 0:00:04]} fxg3 {[%emt 0:00:50]} 25. Kg2 $2 {[%emt 0:04:43]} (25. Rcd1) 25... Bxc1 {[%emt 0:02:49]} 26. Rxc1 {[%emt 0:00:09]} gxh2 {[%emt 0:02:09] aiming for ...Bg4.} 27. Nxd4 {[%emt 0:00:43]} Bd7 {[%emt 0:00:19] [#] Strongly threatening ...Ne6.} ({Stronger than} 27... Nb7 28. Bc7 Bd7 29. Bf3 $19) 28. Rf1 {[%emt 0:05:14]} (28. Rd1 $142) 28... Ne6 {[%emt 0:01:22] Black is clearly winning.} 29. Nxe6 {[%emt 0:00:51]} Bxe6 {[%emt 0:00:07]} 30. d4 {[%emt 0:00:42]} Rc2 {[%emt 0:00:57][%csl LRa2,LRe2]} 31. Rf2 {[%emt 0:00:08]} Rxa2 {[%emt 0:00:22]} 32. Bb4 {[%emt 0:00:22]} Bxb3 {[%emt 0:00:48] [#] ...Re8 is the strong threat.} 33. Kxh2 {[%emt 0:00:35]} Re8 {[%emt 0:01:39] Weighted Error Value: White=0.50/Black=0.06 (flawless)} 0-1